bitfinex/quotes_BTCUSD_20251217
["timestamp","ask_amount","ask_price","bid_price","bid_amount"]
[1765964585235,0.01154921,86586.0,86571.0,0.01832]
[1765964585437,0.01083407,86585.0,86571.0,0.01832]
[1765964585759,0.02238341,86585.0,86571.0,0.01832]
[1765964585956,0.01083407,86584.0,86571.0,0.01832]
[1765964586156,0.24252857,86588.0,86571.0,0.01832]
[1765964586362,0.23098422,86586.0,86570.0,0.33869716]
[1765964586543,0.02238491,86585.0,86571.0,0.01828]
[1765964586906,0.01083557,86584.0,86571.0,0.01828]
[1765964587242,0.01083557,86583.0,86571.0,0.01828]
[1765964587442,0.2425338,86586.0,86571.0,0.01828]
[1765964587700,0.01083289,86585.0,86571.0,0.01828]
[1765964588061,0.01083289,86584.0,86571.0,0.01928]
[1765964588246,0.01083289,86583.0,86571.0,0.01928]
[1765964588448,0.01154881,86589.0,86571.0,0.01828]
[1765964588449,0.24252572,86589.0,86571.0,0.01828]
[1765964588685,0.01083109,86588.0,86571.0,0.01828]
[1765964588887,0.001,86585.0,86571.0,0.01828]
[1765964589106,0.01083109,86587.0,86571.0,0.01828]
[1765964589465,0.001,86583.0,86571.0,0.01828]
[1765964589866,0.01083109,86587.0,86571.0,0.01828]
[1765964590069,0.001,86585.0,86571.0,0.01828]
[1765964590265,0.01183109,86585.0,86571.0,0.01828]
[1765964590475,0.01083109,86584.0,86571.0,0.01828]
[1765964590671,0.24253192,86587.0,86571.0,0.01828]
[1765964590875,0.01082814,86586.0,86571.0,0.01828]
[1765964591558,0.01082814,86585.0,86571.0,0.01828]
[1765964591863,0.001,86583.0,86572.0,0.01155107]
[1765964592035,0.01182814,86583.0,86572.0,0.01155107]
[1765964592358,0.01154854,86591.0,86572.0,0.01155107]
[1765964592553,0.001,86586.0,86573.0,0.01155094]
[1765964592707,0.01082562,86590.0,86573.0,0.01155094]
[1765964593107,0.001,86583.0,86573.0,0.01155094]
[1765964593302,0.01082562,86590.0,86572.0,0.24257207]
[1765964593552,0.01082562,86590.0,86573.0,0.01155094]
[1765964593766,0.001,86586.0,86573.0,0.01155094]
[1765964594006,0.001,86586.0,86572.0,0.24257207]
[1765964594158,0.001,86586.0,86572.0,0.01155107]
[1765964594372,0.001,86586.0,86571.0,0.26085514]
[1765964594578,0.001,86586.0,86571.0,0.02983121]
[1765964594775,0.001,86586.0,86572.0,0.01155107]
[1765964594982,0.001,86586.0,86571.0,0.26085495]
[1765964595404,0.01082562,86589.0,86571.0,0.01828]
[1765964595602,0.01082562,86588.0,86576.0,0.33869716]
[1765964595800,0.001,86583.0,86572.0,0.01155107]
[1765964596001,0.001,86583.0,86573.0,0.01155094]
[1765964596363,0.01082562,86585.0,86574.0,0.01828]
[1765964596540,0.01082562,86584.0,86574.0,0.01828]
[1765964596707,0.01154894,86588.0,86574.0,0.01828]
[1765964597058,0.01082383,86587.0,86574.0,0.01828]
[1765964597402,0.001,86583.0,86574.0,0.01828]
[1765964598820,0.0223728,86587.0,86574.0,0.01828]
[1765964599005,0.01082373,86586.0,86574.0,0.01828]
[1765964599219,0.01082373,86585.0,86574.0,0.01828]
[1765964599427,0.24352828,86588.0,86574.0,0.01828]
[1765964599428,0.01082373,86584.0,86574.0,0.01828]
[1765964599627,0.001,86583.0,86574.0,0.01828]
[1765964599869,0.24180826,86587.0,86574.0,0.01828]
[1765964600155,0.01082446,86586.0,86574.0,0.01828]
[1765964600375,0.01082446,86585.0,86574.0,0.01828]
[1765964600525,0.01082446,86584.0,86574.0,0.01828]
[1765964600872,0.01254907,86587.0,86574.0,0.01828]
[1765964601066,0.01082515,86586.0,86574.0,0.01828]
[1765964601215,0.01082515,86585.0,86574.0,0.01828]
[1765964601416,0.01082515,86584.0,86574.0,0.01828]
[1765964601658,0.24252562,86589.0,86574.0,0.01828]
[1765964601868,0.02237503,86588.0,86574.0,0.01828]
[1765964602044,0.001,86583.0,86574.0,0.01828]
[1765964602374,0.01082609,86586.0,86574.0,0.01828]
[1765964602535,0.001,86584.0,86574.0,0.01828]
[1765964602901,0.01182609,86584.0,86574.0,0.35697716]
[1765964603076,0.01082609,86583.0,86574.0,0.01828]
[1765964603228,0.001,86583.0,86574.0,0.01828]
[1765964603622,0.01082801,86590.0,86574.0,0.01828]
[1765964603823,0.001,86584.0,86574.0,0.01828]
[1765964605090,0.001,86584.0,86575.0,0.01155067]
[1765964605296,0.01082801,86589.0,86575.0,0.24256228]
[1765964605523,0.01082801,86588.0,86575.0,0.24256228]
[1765964605731,0.001,86583.0,86574.0,0.24929541]
[1765964605941,0.01082801,86586.0,86574.0,0.01828]
[1765964606314,0.001,86584.0,86574.0,0.01828]
[1765964606693,0.01082801,86590.0,86574.0,0.01828]
[1765964607233,0.02237668,86590.0,86574.0,0.01828]
[1765964607407,0.01082801,86589.0,86574.0,0.01828]
[1765964608118,0.01254867,86590.0,86574.0,0.01828]
[1765964608476,0.0223836,86589.0,86574.0,0.01828]
[1765964608697,0.001,86584.0,86574.0,0.01828]
[1765964608867,0.01083479,86588.0,86574.0,0.01989287]
[1765964609011,0.01083479,86587.0,86584.0,0.01154947]
[1765964609217,0.002,86589.0,86586.0,0.24253343]
[1765964609447,0.002,86589.0,86588.0,0.23097888]
[1765964610028,0.00145713,86592.0,86589.0,0.2425234]
[1765964610228,0.00145713,86592.0,86589.0,0.01154881]
[1765964610827,0.00145713,86592.0,86585.0,0.01828]
[1765964611168,0.00145713,86592.0,86586.0,0.01154921]
[1765964611550,0.00145713,86592.0,86587.0,0.01154907]
[1765964611746,0.00145713,86592.0,86586.0,0.01154921]
[1765964611949,0.00145713,86592.0,86585.0,0.26081578]
[1765964611950,0.00145713,86592.0,86585.0,0.01828]
[1765964612153,0.00145713,86592.0,86585.0,0.01989287]
[1765964613150,0.00145713,86592.0,86588.0,0.24252757]
[1765964613365,0.00145713,86592.0,86587.0,0.24252991]
[1765964613597,0.00145713,86592.0,86588.0,0.01154894]
[1765964614609,0.00145713,86592.0,86587.0,0.01154907]
[1765964615127,0.00145713,86592.0,86586.0,0.24252841]
[1765964615490,0.00145713,86592.0,86587.0,0.01154907]
[1765964615893,0.00145713,86592.0,86585.0,0.01989287]
[1765964616586,0.00145713,86592.0,86586.0,0.01828]
[1765964618827,0.00245713,86592.0,86586.0,0.01828]
[1765964619927,0.00245713,86592.0,86587.0,0.01828]
[1765964620161,0.02483084,86592.0,86587.0,0.01828]
[1765964620344,0.0108253,86591.0,86587.0,0.01828]
[1765964620540,0.00245713,86592.0,86587.0,0.01828]
[1765964620742,0.24250826,86595.0,86587.0,0.01828]
[1765964620944,0.24251852,86593.0,86587.0,0.01828]
[1765964621150,0.24251852,86593.0,86580.0,0.33872281]
[1765964621151,0.24251852,86593.0,86584.0,0.01828]
[1765964621347,0.01154841,86592.0,86584.0,0.01839326]
[1765964621551,0.01254841,86592.0,86584.0,0.01839326]
[1765964621860,0.001,86592.0,86584.0,0.01839326]
[1765964622060,0.24251852,86593.0,86584.0,0.01839326]
[1765964622278,0.24351852,86593.0,86584.0,0.01839326]
[1765964622656,0.001,86593.0,86584.0,0.01839326]
[1765964622866,0.24250878,86595.0,86584.0,0.01839326]
[1765964623042,0.001,86593.0,86584.0,0.01839326]
[1765964623564,0.001,86592.0,86584.0,0.01839326]
[1765964624137,0.01154814,86594.0,86584.0,0.01839326]
[1765964624336,0.01154827,86593.0,86584.0,0.01839326]
[1765964624647,0.01154801,86595.0,86584.0,0.01839326]
[1765964625072,0.01154787,86596.0,86584.0,0.01839326]
[1765964625675,0.24250589,86596.0,86584.0,0.01839326]
[1765964626485,0.24249493,86600.0,86584.0,0.01839326]
[1765964627399,0.01154747,86599.0,86584.0,0.01839326]
[1765964627622,0.01154761,86598.0,86584.0,0.01839326]
[1765964627811,0.001,86596.0,86584.0,0.01839326]
[1765964629024,0.01154761,86598.0,86584.0,0.01839326]
[1765964629743,0.01154774,86597.0,86584.0,0.01839326]
[1765964629954,0.24250691,86596.0,86584.0,0.01839326]
[1765964630091,0.01154787,86596.0,86584.0,0.01839326]
[1765964630292,0.01154774,86597.0,86584.0,0.01839326]
[1765964630528,0.24250338,86597.0,86584.0,0.01839326]
[1765964630934,0.01154787,86596.0,86584.0,0.01839326]
[1765964631323,0.24250338,86597.0,86584.0,0.01839326]
[1765964631511,0.24250038,86598.0,86584.0,0.01839326]
[1765964631698,0.01154774,86597.0,86584.0,0.01839326]
[1765964632089,0.01154787,86596.0,86584.0,0.01839326]
[1765964632435,0.24250335,86597.0,86584.0,0.01839326]
[1765964632633,0.01154787,86596.0,86584.0,0.01839326]
[1765964632837,0.01083217,86595.0,86584.0,0.01839326]
[1765964633038,0.02238018,86595.0,86584.0,0.01839326]
[1765964633257,0.01083217,86594.0,86584.0,0.01839326]
[1765964633593,0.01154841,86592.0,86584.0,0.01839326]
[1765964633743,0.01154867,86590.0,86584.0,0.00011326]
[1765964633945,0.01083217,86589.0,86585.0,0.01828]
[1765964634891,0.01083217,86588.0,86585.0,0.01828]
[1765964635088,0.01154827,86593.0,86585.0,0.01828]
[1765964635294,0.01083434,86592.0,86585.0,0.01828]
[1765964635494,0.01083434,86592.0,86584.0,0.00011326]
[1765964636014,0.01083434,86591.0,86584.0,0.01839326]
[1765964636217,0.01083434,86590.0,86584.0,0.01839326]
[1765964636393,0.01083434,86589.0,86584.0,0.01839326]
[1765964636596,0.01083434,86588.0,86584.0,0.01839326]
[1765964636785,0.01154801,86595.0,86584.0,0.01839326]
[1765964637013,0.01083628,86594.0,86584.0,0.01839326]
[1765964637416,0.01083628,86593.0,86584.0,0.01839326]
[1765964637744,0.01083628,86592.0,86584.0,0.01839326]
[1765964637974,0.01083628,86591.0,86584.0,0.01839326]
[1765964638171,0.01083628,86590.0,86584.0,0.01839326]
[1765964638380,0.01083628,86589.0,86584.0,0.01839326]
[1765964638593,0.01083628,86588.0,86584.0,0.01839326]
[1765964638797,0.01083628,86587.0,86584.0,0.01839326]
[1765964638996,0.001,86594.0,86584.0,0.01839326]
[1765964639557,0.01083868,86594.0,86584.0,0.01839326]
[1765964639777,0.01083868,86593.0,86585.0,0.01154934]
[1765964639986,0.01083868,86592.0,86585.0,0.24253587]
[1765964640191,0.01083868,86591.0,86585.0,0.24253587]
[1765964640416,0.2911,86601.0,86585.0,0.24253587]
[1765964640417,0.01083868,86590.0,86585.0,0.24253587]
[1765964640640,0.2911,86601.0,86585.0,0.24253587]
[1765964640901,0.01083869,86600.0,86584.0,0.2625445]
[1765964641103,0.01083869,86599.0,86590.0,0.33870444]
[1765964641309,0.01083869,86598.0,86591.0,0.01154854]
[1765964641512,0.01083869,86597.0,86590.0,0.33870444]
[1765964641737,0.01083869,86596.0,86588.0,0.01154894]
[1765964641939,0.01083869,86595.0,86588.0,0.01154894]
[1765964642151,0.0004,86601.0,86588.0,0.01154894]
[1765964642152,0.01083869,86594.0,86590.0,0.01154867]
[1765964642362,0.01083869,86593.0,86590.0,0.01154867]
[1765964642576,0.0004,86601.0,86590.0,0.24252198]
[1765964642782,0.0004,86601.0,86592.0,0.01154841]
[1765964643000,0.001,86597.0,86590.0,0.01154867]
[1765964643201,0.001,86597.0,86591.0,0.01154854]
[1765964643349,0.00025414,86600.0,86592.0,0.01154841]
[1765964643548,0.00025414,86600.0,86591.0,0.01154854]
[1765964644586,0.00025414,86600.0,86592.0,0.01154841]
[1765964645210,0.00025414,86600.0,86590.0,0.24413497]
[1765964645360,0.00025414,86600.0,86590.0,0.58283931]
[1765964645579,0.00125414,86600.0,86591.0,0.01154854]
[1765964645818,0.00125414,86600.0,86590.0,0.35186598]
[1765964646030,0.00025414,86600.0,86590.0,0.34031731]
[1765964646519,0.00125414,86600.0,86590.0,0.34031731]
[1765964646928,0.00025414,86600.0,86590.0,0.35186598]
[1765964647106,0.00125414,86600.0,86590.0,0.34031731]
[1765964648711,0.00125414,86600.0,86590.0,0.58283847]
[1765964648915,0.00125414,86600.0,86590.0,0.35186598]
[1765964649510,0.00125414,86600.0,86591.0,0.01154854]
[1765964649711,0.00125414,86600.0,86594.0,0.01154814]
[1765964649912,0.00125414,86600.0,86595.0,0.01828]
[1765964650361,0.00025414,86600.0,86595.0,0.01828]
[1765964651158,0.01109282,86600.0,86595.0,0.01828]
[1765964651351,0.01083868,86599.0,86595.0,0.01828]
[1765964651614,0.01083868,86598.0,86595.0,0.01828]
[1765964651915,0.01083868,86597.0,86595.0,0.01828]
[1765964652063,0.00125414,86600.0,86595.0,0.01828]
[1765964652291,0.00025414,86600.0,86595.0,0.01828]
[1765964652684,0.001,86599.0,86595.0,0.01828]
[1765964653119,0.00025414,86600.0,86595.0,0.01828]
[1765964653623,0.00125414,86600.0,86595.0,0.01828]
[1765964666652,0.01154747,86599.0,86594.0,0.01828]
[1765964666890,0.00125414,86600.0,86594.0,0.01828]
[1765964666891,0.01083552,86598.0,86594.0,0.01828]
[1765964667137,0.01083552,86597.0,86594.0,0.01828]
[1765964667328,0.01083552,86596.0,86592.0,0.01828]
[1765964667533,0.01083552,86595.0,86591.0,0.01828]
[1765964667743,0.01083552,86594.0,86591.0,0.01828]
[1765964667922,0.001,86599.0,86591.0,0.01828]
[1765964668403,0.00025414,86600.0,86591.0,0.01828]
[1765964670645,0.00125414,86600.0,86591.0,0.01828]
[1765964673355,0.00125414,86600.0,86591.0,0.01989287]
[1765964675539,0.00125414,86600.0,86591.0,0.00161287]
[1765964675762,0.00125414,86600.0,86592.0,0.01828]
[1765964675994,0.00125414,86600.0,86592.0,0.01989287]
[1765964676703,0.00025414,86600.0,86592.0,0.03144128]
[1765964676901,0.00125414,86600.0,86592.0,0.01989287]
[1765964681068,0.32193625,86612.0,86592.0,0.26240858]
[1765964681294,0.33348199,86612.0,86593.0,0.01154827]
[1765964681493,0.32193625,86612.0,86596.0,0.01154787]
[1765964681748,0.2907,86612.0,86594.0,0.24250881]
[1765964681906,0.2907,86612.0,86593.0,0.24251296]
[1765964682105,0.01154601,86610.0,86592.0,0.01989287]
[1765964682329,0.2907,86610.0,86592.0,0.03144128]
[1765964682544,0.2907,86610.0,86595.0,0.01154801]
[1765964682748,0.2907,86610.0,86594.0,0.24250845]
[1765964683144,0.2907,86610.0,86594.0,0.00161287]
[1765964683369,0.01154561,86613.0,86594.0,0.01316101]
[1765964683560,0.002,86612.0,86594.0,0.00161287]
[1765964683864,0.01154574,86612.0,86594.0,0.00161287]
[1765964684064,0.30224574,86612.0,86594.0,0.00161287]
[1765964684420,0.002,86610.0,86594.0,0.00161287]
[1765964684771,0.2907,86612.0,86594.0,0.00161287]
[1765964685151,0.01154587,86611.0,86594.0,0.00161287]
[1765964685356,0.01354574,86612.0,86594.0,0.00161287]
[1765964686037,0.002,86612.0,86594.0,0.00161287]
[1765964686435,0.30224561,86613.0,86594.0,0.00161287]
[1765964686774,0.002,86611.0,86594.0,0.00161287]
[1765964687316,0.53315793,86613.0,86594.0,0.00161287]
[1765964687588,0.01154574,86612.0,86594.0,0.00161287]
[1765964687893,0.53515802,86613.0,86594.0,0.00161287]
[1765964688075,0.01154574,86612.0,86594.0,0.00161287]
[1765964688273,0.002,86613.0,86594.0,0.00161287]
[1765964688473,0.30424561,86613.0,86594.0,0.01316101]
[1765964688658,0.2927,86613.0,86594.0,0.01316101]
[1765964689066,0.2927,86613.0,86595.0,0.01154801]
[1765964689266,0.2907,86613.0,86596.0,0.01154787]
[1765964689464,0.01154534,86615.0,86596.0,0.01154787]
[1765964689664,0.002,86612.0,86595.0,0.01316088]
[1765964689909,0.002,86612.0,86595.0,0.00161287]
[1765964690118,0.24245808,86613.0,86595.0,0.00161287]
[1765964690426,0.01154574,86612.0,86595.0,0.00161287]
[1765964690634,0.24445808,86613.0,86595.0,0.00161287]
[1765964691052,0.2907,86611.0,86595.0,0.00161287]
[1765964692320,0.30424561,86613.0,86595.0,0.00161287]
[1765964692523,0.03471609,86610.0,86595.0,0.00161287]
[1765964693241,0.01084368,86609.0,86595.0,0.00161287]
[1765964693824,0.04555977,86608.0,86595.0,0.00161287]
[1765964694031,0.01084368,86607.0,86595.0,0.00161287]
[1765964694433,0.04555977,86606.0,86595.0,0.00161287]
[1765964694747,0.01084368,86605.0,86595.0,0.00161287]
[1765964695278,0.01084368,86604.0,86595.0,0.00161287]
[1765964695432,0.01084368,86603.0,86595.0,0.00161287]
[1765964695632,0.01084368,86602.0,86595.0,0.00161287]
[1765964695861,0.01084368,86601.0,86595.0,0.00161287]
[1765964696078,0.01084368,86600.0,86595.0,0.00161287]
[1765964696314,0.01084368,86599.0,86595.0,0.00161287]
[1765964696442,0.01084368,86598.0,86595.0,0.00161287]
[1765964696642,0.01084368,86597.0,86595.0,0.00161287]
[1765964696900,0.01084368,86596.0,86595.0,0.00161287]
[1765964697637,0.01084368,86604.0,86595.0,0.00161287]
[1765964697774,0.01084368,86603.0,86595.0,0.00161287]
[1765964697973,0.01084368,86602.0,86595.0,0.00161287]
[1765964698175,0.01084368,86601.0,86595.0,0.00161287]
[1765964698375,0.01084368,86600.0,86595.0,0.00161287]
[1765964698638,0.01084368,86599.0,86595.0,0.00161287]
[1765964698841,0.01084368,86598.0,86595.0,0.00161287]
[1765964699042,0.01084368,86597.0,86595.0,0.00161287]
[1765964699180,0.01084406,86596.0,86595.0,0.00161287]
[1765964699383,0.01084406,86604.0,86595.0,0.00161287]
[1765964700613,0.24178035,86604.0,86595.0,0.01828]
[1765964700809,0.022391,86603.0,86595.0,0.01828]
[1765964701012,0.01084406,86602.0,86595.0,0.01828]
[1765964701441,0.01084406,86601.0,86593.0,0.01828]
[1765964702936,0.02912406,86600.0,86593.0,0.01828]
[1765964703138,0.01084406,86599.0,86593.0,0.01828]
[1765964704842,0.02239153,86599.0,86581.0,0.01828]
[1765964705070,0.01084406,86598.0,86585.0,0.01828]
[1765964705433,0.01084406,86597.0,86585.0,0.01989287]
[1765964705745,0.01084406,86596.0,86585.0,0.03144221]
[1765964705956,0.24248239,86605.0,86585.0,0.03144221]
[1765964705957,0.01084406,86595.0,86585.0,0.03144221]
[1765964706102,0.01084406,86594.0,86587.0,0.2425296]
[1765964706314,0.01084439,86593.0,86585.0,0.26242417]
[1765964706522,0.03471954,86599.0,86585.0,0.26242417]
[1765964706835,0.03471954,86599.0,86589.0,0.33863825]
[1765964706836,0.01084445,86598.0,86589.0,0.33863825]
[1765964707031,0.01084445,86598.0,86589.0,0.35018706]
[1765964707985,0.30224547,86614.0,86589.0,0.35179993]
[1765964707986,0.01084445,86597.0,86589.0,0.35179993]
[1765964708192,0.01084445,86596.0,86589.0,0.00161287]
[1765964708408,0.01084445,86595.0,86590.0,0.01828]
[1765964708640,0.01084445,86594.0,86590.0,0.01828]
[1765964708872,0.01084445,86593.0,86590.0,0.01828]
[1765964709072,0.01084445,86592.0,86590.0,0.01828]
[1765964709220,0.03471854,86600.0,86590.0,0.01828]
[1765964709428,0.01084415,86599.0,86590.0,0.01828]
[1765964710869,0.01084415,86598.0,86590.0,0.01828]
[1765964712126,0.01084415,86598.0,86590.0,0.03144154]
[1765964712240,0.01084415,86597.0,86591.0,0.01154854]
[1765964712448,0.01084415,86596.0,86591.0,0.24413041]
[1765964712650,0.03471501,86607.0,86591.0,0.01316141]
[1765964712893,0.01084316,86606.0,86592.0,0.01154841]
[1765964713093,0.01084316,86606.0,86591.0,0.01316141]
[1765964713656,0.01084316,86606.0,86591.0,0.00161287]
[1765964714523,0.0223897,86606.0,86591.0,0.00161287]
[1765964714654,0.01084316,86605.0,86592.0,0.01828]
[1765964715093,0.01084316,86604.0,86592.0,0.01828]
[1765964715302,0.01084316,86603.0,86592.0,0.01828]
[1765964716508,0.01084316,86602.0,86592.0,0.01828]
[1765964717710,0.01184316,86602.0,86592.0,0.01828]
[1765964720673,0.02339023,86602.0,86591.0,0.00161287]
[1765964720843,0.01154761,86598.0,86574.0,0.01155081]
[1765964721012,0.30224827,86593.0,86572.0,0.24257074]
[1765964721216,0.01154867,86590.0,86578.0,0.01828]
[1765964721436,0.01084316,86589.0,86578.0,0.01828]
[1765964722757,0.04556516,86588.0,86578.0,0.01828]
[1765964722961,0.01084316,86587.0,86578.0,0.01828]
[1765964723587,0.04556516,86586.0,86578.0,0.01828]
[1765964723742,0.01084316,86585.0,86584.0,0.00111326]
[1765964724180,0.01084316,86585.0,86584.0,0.00011326]
[1765964724389,0.01828,86585.0,86584.0,0.00011326]
[1765964724598,0.02912316,86585.0,86584.0,0.00011326]
[1765964725157,0.26011005,86585.0,86584.0,0.00011326]
[1765964732718,0.24926689,86585.0,86584.0,0.00011326]
[1765964733034,0.2600859,86585.0,86584.0,0.00011326]
[1765964735018,0.02909901,86585.0,86584.0,0.00011326]
[1765964736503,0.2600859,86585.0,86584.0,0.00011326]
[1765964738537,0.2594266,86585.0,86584.0,0.00011326]
[1765964739122,0.2604266,86585.0,86584.0,0.00011326]
[1765964739794,0.2594266,86585.0,86584.0,0.00011326]
[1765964740243,0.2604266,86585.0,86584.0,0.00011326]
[1765964740765,0.2594266,86585.0,86584.0,0.00011326]
[1765964742066,0.2604266,86585.0,86584.0,0.00011326]
[1765964743184,0.08083554,86585.0,86584.0,0.00011326]
[1765964743603,0.09911554,86585.0,86584.0,0.00011326]
[1765964748253,0.38981554,86585.0,86584.0,0.00011326]
[1765964754389,0.30998,86585.0,86584.0,0.00011326]
[1765964754993,0.34120273,86585.0,86584.0,0.00011326]
[1765964755386,0.53996689,86585.0,86584.0,0.00011326]
[1765964755838,0.54096689,86585.0,86584.0,0.00011326]
[1765964756015,0.54196689,86585.0,86584.0,0.00011326]
[1765964759486,0.02028,86585.0,86584.0,0.00011326]
[1765964760895,0.06234759,86585.0,86584.0,0.00011326]
[1765964761500,0.03112228,86585.0,86584.0,0.00011326]
[1765964761670,0.03012228,86585.0,86584.0,0.00011326]
[1765964761872,0.02912228,86585.0,86584.0,0.00011326]
[1765964762108,0.03112228,86585.0,86584.0,0.00011326]
[1765964762469,0.02912228,86585.0,86584.0,0.00011326]
[1765964763079,0.31982228,86585.0,86584.0,0.00011326]
[1765964764140,0.02912228,86585.0,86584.0,0.00011326]
[1765964768069,0.26010917,86585.0,86584.0,0.00011326]
[1765964770562,0.26110917,86585.0,86584.0,0.00011326]
[1765964770763,0.26210917,86585.0,86584.0,0.00011326]
[1765964771015,0.26110917,86585.0,86584.0,0.00011326]
[1765964771218,0.26010917,86585.0,86584.0,0.00011326]
[1765964771436,0.26210917,86585.0,86584.0,0.00011326]
[1765964773143,0.55280917,86585.0,86584.0,0.00011326]
[1765964777612,0.11557268,86585.0,86584.0,0.00011326]
[1765964783331,0.40627268,86585.0,86584.0,0.00011326]
[1765964784367,0.32742694,86585.0,86584.0,0.00011326]
[1765964785786,0.32642694,86585.0,86584.0,0.00011326]
[1765964785991,0.32542694,86585.0,86584.0,0.00011326]
[1765964788622,0.05001839,86587.0,86584.0,0.00011326]
[1765964788923,0.03472694,86586.0,86584.0,0.00011326]
[1765964789529,0.01084597,86585.0,86584.0,0.00011326]
[1765964790337,0.02470774,86585.0,86584.0,0.00011326]
[1765964793476,0.01084597,86585.0,86584.0,0.00011326]
[1765964793680,0.03472589,86587.0,86584.0,0.00011326]
[1765964793876,0.01084597,86586.0,86584.0,0.00011326]
[1765964799282,0.01084597,86585.0,86584.0,0.00011326]
[1765964799900,0.01084597,86586.0,86584.0,0.00011326]
[1765964801292,0.01084597,86585.0,86584.0,0.00011326]
[1765964801923,0.01084597,86587.0,86584.0,0.00011326]
[1765964802120,0.01084597,86586.0,86584.0,0.00011326]
[1765964802418,0.01084597,86585.0,86584.0,0.00011326]
[1765964802630,0.03122531,86588.0,86584.0,0.00011326]
[1765964802631,0.01084814,86587.0,86584.0,0.00011326]
[1765964803230,0.01184814,86587.0,86584.0,0.00011326]
[1765964805151,0.01084814,86587.0,86584.0,0.00011326]
[1765964806764,0.15677483,86591.0,86584.0,0.00011326]
[1765964807151,0.16832337,86591.0,86584.0,0.00011326]
[1765964808054,0.15777483,86591.0,86584.0,0.00011326]
[1765964808257,0.16932337,86591.0,86584.0,0.00011326]
[1765964808483,0.15777483,86591.0,86584.0,0.00011326]
[1765964808864,0.40029446,86591.0,86584.0,0.00011326]
[1765964809799,0.15777483,86591.0,86584.0,0.00011326]
[1765964810955,0.16932337,86591.0,86584.0,0.00011326]
[1765964811510,0.15777483,86591.0,86584.0,0.00011326]
[1765964811694,0.16932337,86591.0,86584.0,0.00011326]
[1765964812458,0.15777483,86591.0,86584.0,0.00011326]
[1765964813465,0.001,86591.0,86584.0,0.00011326]
[1765964814114,0.01928,86591.0,86574.0,0.01775326]
[1765964814677,0.01928,86591.0,86570.0,0.26085388]
[1765964814678,0.33878758,86584.0,86575.0,0.01828]
[1765964815687,0.24252966,86588.0,86575.0,0.01828]
[1765964816388,0.01154907,86587.0,86575.0,0.01828]
[1765964816587,0.53322731,86589.0,86575.0,0.01828]
[1765964816793,0.2907,86589.0,86575.0,0.01828]
[1765964817114,0.01154894,86588.0,86575.0,0.01828]
[1765964817320,0.53322506,86589.0,86575.0,0.01828]
[1765964817497,0.53322567,86589.0,86575.0,0.01828]
[1765964817879,0.2907,86589.0,86575.0,0.01828]
[1765964818300,0.30224881,86589.0,86575.0,0.01828]
[1765964818684,0.01085048,86588.0,86575.0,0.01828]
[1765964820520,0.01085048,86587.0,86575.0,0.01828]
[1765964820720,0.01085048,86586.0,86575.0,0.01828]
[1765964821030,0.01085048,86585.0,86575.0,0.01828]
[1765964821233,0.01085048,86584.0,86575.0,0.01828]
[1765964821394,0.01085048,86583.0,86575.0,0.01828]
[1765964821598,0.01085048,86582.0,86575.0,0.01828]
[1765964821815,0.01085048,86581.0,86575.0,0.01828]
[1765964822043,0.01085048,86580.0,86575.0,0.01828]
[1765964822280,0.01085048,86579.0,86575.0,0.01828]
[1765964822483,0.01085048,86578.0,86575.0,0.01828]
[1765964822672,0.01085048,86577.0,86575.0,0.01828]
[1765964822878,0.01085048,86576.0,86575.0,0.01928]
[1765964823359,0.01085048,86589.0,86575.0,0.01828]
[1765964824080,0.01085048,86589.0,86575.0,0.01928]
[1765964824249,0.01085048,86589.0,86575.0,0.01828]
[1765964824740,0.01085048,86589.0,86575.0,0.01928]
[1765964825481,0.01085048,86589.0,86575.0,0.01828]
[1765964826730,0.01154907,86587.0,86575.0,0.01828]
[1765964826913,0.18491574,86590.0,86575.0,0.01989287]
[1765964827079,0.01154907,86587.0,86575.0,0.01989287]
[1765964827616,0.01154947,86584.0,86575.0,0.01989287]
[1765964827828,0.01154907,86587.0,86575.0,0.01989287]
[1765964828036,0.24253348,86586.0,86575.0,0.01989287]
[1765964828200,0.23098216,86587.0,86575.0,0.01989287]
[1765964828428,0.24253096,86587.0,86575.0,0.01989287]
[1765964828617,0.24253044,86588.0,86575.0,0.01989287]
[1765964829241,0.01154894,86588.0,86575.0,0.01989287]
[1765964829443,0.01154907,86587.0,86575.0,0.01989287]
[1765964829846,0.24252988,86588.0,86575.0,0.01989287]
[1765964830048,0.58131202,86590.0,86575.0,0.01989287]
[1765964830257,0.33878758,86590.0,86575.0,0.01989287]
[1765964830801,0.35033625,86590.0,86575.0,0.01989287]
[1765964831874,0.33878758,86590.0,86575.0,0.01989287]
[1765964832114,0.35033625,86590.0,86575.0,0.01989287]
[1765964832299,0.33878758,86590.0,86575.0,0.01989287]
[1765964832505,0.33978758,86590.0,86575.0,0.01989287]
[1765964832701,0.01154881,86589.0,86575.0,0.01989287]
[1765964833044,0.01154894,86588.0,86575.0,0.01989287]
[1765964833472,0.01154881,86589.0,86575.0,0.01989287]
[1765964833944,0.58231056,86590.0,86575.0,0.01989287]
[1765964834460,0.24252536,86589.0,86575.0,0.01989287]
[1765964834674,0.01154707,86602.0,86580.0,0.33878758]
[1765964834851,0.01154654,86606.0,86582.0,0.01154974]
[1765964835147,0.06156506,86605.0,86583.0,0.01154961]
[1765964835350,0.06156506,86605.0,86585.0,0.01154934]
[1765964835489,0.001,86590.0,86586.0,0.01828]
[1765964835695,0.001,86590.0,86586.0,0.01989287]
[1765964836177,0.35033492,86600.0,86586.0,0.01989287]
[1765964836525,0.33878758,86600.0,86586.0,0.01989287]
[1765964837170,0.33878758,86600.0,86586.0,0.00161287]
[1765964837630,0.33978758,86600.0,86586.0,0.00161287]
[1765964838068,0.001,86600.0,86586.0,0.01316208]
[1765964838268,0.003,86600.0,86586.0,0.00161287]
[1765964839240,0.003,86600.0,86586.0,0.01316208]
[1765964839444,0.003,86600.0,86586.0,0.00161287]
[1765964839645,0.003,86600.0,86588.0,0.24252737]
[1765964839871,0.003,86600.0,86589.0,0.02540738]
[1765964840063,0.003,86600.0,86590.0,0.24252201]
[1765964840274,0.003,86600.0,86590.0,0.01154867]
[1765964840470,0.01282941,86600.0,86590.0,0.00161287]
[1765964840676,0.01082941,86599.0,86590.0,0.00161287]
[1765964840836,0.01082941,86598.0,86590.0,0.00161287]
[1765964841078,0.002,86600.0,86590.0,0.01316154]
[1765964841491,0.001,86600.0,86590.0,0.01316154]
[1765964841910,0.002,86599.0,86591.0,0.01154854]
[1765964842112,0.002,86599.0,86592.0,0.01154841]
[1765964842332,0.001,86600.0,86592.0,0.01154841]
[1765964842543,0.01082376,86606.0,86591.0,0.24251916]
[1765964842981,0.001,86598.0,86591.0,0.24251916]